[Event "Titled Tuesday Blitz February 07 Early 2023"]
[White "Kuderinov, Kirill"]
[Black "Khamdamova, Afruza"]
[WhiteFideId "13701568"]
[BlackFideId "14210444"]
[WhiteElo "2404"]
[BlackElo "2162"]
[Result "1-0"]
[Round "11"]
[TimeControl "180+2"]
[Date "2023.02.07"]
[WhiteClock "0:00:56"]
[BlackClock "0:00:04"]

1. c4 {[%clk 0:03:00]}  Nf6 {[%clk 0:03:00]} 2. Nc3 {[%clk 0:02:59]}  e5 {[%clk 0:02:58]} 3. g3 {[%clk 0:02:59]}  d5 {[%clk 0:02:58]} 4. cxd5 {[%clk 0:02:58]}  Nxd5 {[%clk 0:02:58]} 5. Bg2 {[%clk 0:02:59]}  Be6 {[%clk 0:02:57]} 6. Nf3 {[%clk 0:02:58]}  Nc6 {[%clk 0:02:57]} 7. d3 {[%clk 0:02:56]}  Be7 {[%clk 0:02:56]} 8. Bd2 {[%clk 0:02:56]}  O-O {[%clk 0:02:56]} 9. O-O {[%clk 0:02:57]}  h6 {[%clk 0:02:50]} 10. a3 {[%clk 0:02:56]}  Qd7 {[%clk 0:02:49]} 11. b4 {[%clk 0:02:55]}  a6 {[%clk 0:02:49]} 12. Rc1 {[%clk 0:02:55]}  Rad8 {[%clk 0:02:45]} 13. Ne4 {[%clk 0:02:53]}  Bh3 {[%clk 0:02:38]} 14. Qa4 {[%clk 0:02:43]}  Nd4 {[%clk 0:02:26]} 15. Qd1 {[%clk 0:02:42]}  Nxf3+ {[%clk 0:02:25]} 16. Bxf3 {[%clk 0:02:43]}  Bxf1 {[%clk 0:02:25]} 17. Qxf1 {[%clk 0:02:43]}  b6 {[%clk 0:02:08]} 18. Qg2 {[%clk 0:02:35]}  f5 {[%clk 0:02:05]} 19. Nc3 {[%clk 0:02:33]}  Nxc3 {[%clk 0:02:03]} 20. Rxc3 {[%clk 0:02:33]}  e4 {[%clk 0:02:00]} 21. Bh5 {[%clk 0:02:28]}  Bf6 {[%clk 0:01:54]} 22. Rc1 {[%clk 0:02:12]}  exd3 {[%clk 0:01:53]} 23. exd3 {[%clk 0:02:13]}  Qxd3 {[%clk 0:01:52]} 24. Bf4 {[%clk 0:02:11]}  Rd7 {[%clk 0:01:43]} 25. Qc6 {[%clk 0:02:10]}  Re7 {[%clk 0:01:23]} 26. Rd1 {[%clk 0:02:01]}  Qc3 {[%clk 0:01:15]} 27. Qd5+ {[%clk 0:01:57]}  Kh8 {[%clk 0:01:14]} 28. Qxf5 {[%clk 0:01:47]}  Re1+ {[%clk 0:00:55]} 29. Kg2 {[%clk 0:01:38]}  Rxd1 {[%clk 0:00:50]} 30. Bxd1 {[%clk 0:01:39]}  Be7 {[%clk 0:00:49]} 31. Qe4 {[%clk 0:01:36]}  Bd6 {[%clk 0:00:27]} 32. Bc2 {[%clk 0:01:35]}  Kg8 {[%clk 0:00:28]} 33. Qh7+ {[%clk 0:01:29]}  Kf7 {[%clk 0:00:28]} 34. Bxh6 {[%clk 0:01:24]}  Be5 {[%clk 0:00:22]} 35. Be4 {[%clk 0:01:18]}  Ke7 {[%clk 0:00:15]} 36. Bg5+ {[%clk 0:01:17]}  Kd7 {[%clk 0:00:15]} 37. Qh3+ {[%clk 0:01:18]}  Kd6 {[%clk 0:00:10]} 38. Qg4 {[%clk 0:01:16]}  Qd4 {[%clk 0:00:09]} 39. Be3 {[%clk 0:01:13]}  Qb2 {[%clk 0:00:08]} 40. Qg6+ {[%clk 0:01:11]}  Kd7 {[%clk 0:00:06]} 41. Qc6+ {[%clk 0:01:09]}  Kd8 {[%clk 0:00:05]} 42. Qd5+ {[%clk 0:01:01]}  Ke7 {[%clk 0:00:05]} 43. Bg5+ {[%clk 0:00:55]}  Bf6 {[%clk 0:00:05]} 44. Bf5 {[%clk 0:00:55]}  Bxg5 {[%clk 0:00:04]} 45. Qe6+ {[%clk 0:00:56]}  Kd8 {[%clk 0:00:04]} 46. Qd7# {[%clk 0:00:56]} 1-0


[Site "https://www.chess.com"]

[Event "Titled Tuesday Blitz February 07 Early 2023"]
[White "Iljin, Timofey"]
[Black "Demin, Vladimir"]
[WhiteFideId "14110180"]
[BlackFideId "4167457"]
[WhiteElo "2329"]
[BlackElo "2430"]
[Result "0-1"]
[Round "11"]
[TimeControl "180+2"]
[Date "2023.02.07"]
[WhiteClock "0:00:10"]
[BlackClock "0:01:45"]

1. d4 {[%clk 0:02:40]}  d5 {[%clk 0:02:57]} 2. c4 {[%clk 0:02:40]}  e6 {[%clk 0:02:58]} 3. Nc3 {[%clk 0:02:40]}  Nf6 {[%clk 0:02:57]} 4. cxd5 {[%clk 0:02:40]}  exd5 {[%clk 0:02:57]} 5. Bg5 {[%clk 0:02:41]}  Be7 {[%clk 0:02:57]} 6. e3 {[%clk 0:02:40]}  h6 {[%clk 0:02:57]} 7. Bh4 {[%clk 0:02:40]}  Bg4 {[%clk 0:02:58]} 8. f3 {[%clk 0:02:35]}  Be6 {[%clk 0:02:57]} 9. Bd3 {[%clk 0:02:35]}  c5 {[%clk 0:02:57]} 10. Nge2 {[%clk 0:02:35]}  Nc6 {[%clk 0:02:57]} 11. O-O {[%clk 0:02:34]}  cxd4 {[%clk 0:02:57]} 12. exd4 {[%clk 0:02:34]}  O-O {[%clk 0:02:57]} 13. Kh1 {[%clk 0:02:34]}  Kh8 {[%clk 0:02:56]} 14. Bf2 {[%clk 0:02:34]}  Bd6 {[%clk 0:02:52]} 15. Ng3 {[%clk 0:02:32]}  Qd7 {[%clk 0:02:47]} 16. Re1 {[%clk 0:02:31]}  a6 {[%clk 0:02:45]} 17. Na4 {[%clk 0:02:23]}  Rae8 {[%clk 0:02:42]} 18. Rc1 {[%clk 0:02:19]}  Bf4 {[%clk 0:02:35]} 19. Nc5 {[%clk 0:02:17]}  Qc7 {[%clk 0:02:33]} 20. Nxe6 {[%clk 0:02:11]}  fxe6 {[%clk 0:02:33]} 21. Rc2 {[%clk 0:02:09]}  e5 {[%clk 0:02:32]} 22. dxe5 {[%clk 0:02:08]}  Rxe5 {[%clk 0:02:32]} 23. Rxe5 {[%clk 0:02:05]}  Qxe5 {[%clk 0:02:33]} 24. Re2 {[%clk 0:02:05]}  Qg5 {[%clk 0:02:32]} 25. Nf5 {[%clk 0:01:56]}  Ne5 {[%clk 0:02:28]} 26. Ne7 {[%clk 0:01:19]}  Re8 {[%clk 0:02:02]} 27. h4 {[%clk 0:00:54]}  Qh5 {[%clk 0:01:55]} 28. Rxe5 {[%clk 0:00:49]}  Bxe5 {[%clk 0:01:52]} 29. Bg6 {[%clk 0:00:39]}  Rxe7 {[%clk 0:01:48]} 30. Bxh5 {[%clk 0:00:35]}  Nxh5 {[%clk 0:01:49]} 31. Qxd5 {[%clk 0:00:22]}  Kh7 {[%clk 0:01:47]} 32. Qd3+ {[%clk 0:00:10]}  g6 {[%clk 0:01:45]} 0-1


[Site "https://www.chess.com"]

[Event "Titled Tuesday Blitz February 07 Early 2023"]
[White "Ramirez Allo, Eduardo"]
[Black "Kvaloy, Aksel Bu"]
[WhiteFideId "2224178"]
[BlackFideId "1528815"]
[WhiteElo "2274"]
[BlackElo "2321"]
[Result "0-1"]
[Round "11"]
[TimeControl "180+2"]
[Date "2023.02.07"]
[WhiteClock "0:00:02"]
[BlackClock "0:00:23"]

1. Nf3 {[%clk 0:03:00]}  Nf6 {[%clk 0:02:58]} 2. g3 {[%clk 0:03:01]}  d5 {[%clk 0:02:52]} 3. c4 {[%clk 0:03:01]}  c6 {[%clk 0:02:49]} 4. Bg2 {[%clk 0:03:00]}  Bg4 {[%clk 0:02:48]} 5. O-O {[%clk 0:03:00]}  e6 {[%clk 0:02:45]} 6. d4 {[%clk 0:03:00]}  Nbd7 {[%clk 0:02:44]} 7. Nc3 {[%clk 0:02:57]}  Bd6 {[%clk 0:02:38]} 8. Bf4 {[%clk 0:02:39]}  Bxf4 {[%clk 0:02:35]} 9. gxf4 {[%clk 0:02:40]}  O-O {[%clk 0:02:33]} 10. e3 {[%clk 0:02:37]}  Ne8 {[%clk 0:02:31]} 11. Qb3 {[%clk 0:02:34]}  Rb8 {[%clk 0:02:27]} 12. Ne5 {[%clk 0:02:30]}  Bf5 {[%clk 0:02:23]} 13. a4 {[%clk 0:02:14]}  Nd6 {[%clk 0:02:15]} 14. cxd5 {[%clk 0:02:10]}  exd5 {[%clk 0:02:15]} 15. Qa3 {[%clk 0:02:05]}  Qf6 {[%clk 0:02:06]} 16. b4 {[%clk 0:01:57]}  a6 {[%clk 0:01:57]} 17. b5 {[%clk 0:01:55]}  axb5 {[%clk 0:01:50]} 18. axb5 {[%clk 0:01:56]}  Nb6 {[%clk 0:01:50]} 19. bxc6 {[%clk 0:01:49]}  bxc6 {[%clk 0:01:49]} 20. Qc5 {[%clk 0:01:41]}  Nbc4 {[%clk 0:01:42]} 21. Ra6 {[%clk 0:01:26]}  Qh4 {[%clk 0:01:32]} 22. Rxc6 {[%clk 0:01:23]}  Nxe5 {[%clk 0:01:23]} 23. fxe5 {[%clk 0:01:14]}  Ne4 {[%clk 0:01:03]} 24. Qxd5 {[%clk 0:00:52]}  Rfd8 {[%clk 0:01:02]} 25. Qa2 {[%clk 0:00:44]}  Qg5 {[%clk 0:00:58]} 26. f4 {[%clk 0:00:41]}  Qg4 {[%clk 0:00:55]} 27. Nxe4 {[%clk 0:00:40]}  Bxe4 {[%clk 0:00:56]} 28. Rc7 {[%clk 0:00:21]}  Rbc8 {[%clk 0:00:39]} 29. Rxc8 {[%clk 0:00:05]}  Rxc8 {[%clk 0:00:40]} 30. Qf2 {[%clk 0:00:05]}  Rc2 {[%clk 0:00:35]} 31. Rb1 {[%clk 0:00:05]}  h5 {[%clk 0:00:24]} 32. Qg3 {[%clk 0:00:02]}  Rxg2+ {[%clk 0:00:23]} 0-1


[Site "https://www.chess.com"]

[Event "Titled Tuesday Blitz February 07 Early 2023"]
[White "Borrmann, Laurenz"]
[Black "Jovic, Stanoje"]
[WhiteFideId "312187930"]
[BlackFideId "905020"]
[WhiteElo "2304"]
[BlackElo "2075"]
[Result "1-0"]
[Round "11"]
[TimeControl "180+2"]
[Date "2023.02.07"]
[WhiteClock "0:00:17"]
[BlackClock "0:00:13"]

1. d4 {[%clk 0:03:00]}  Nf6 {[%clk 0:02:59]} 2. c4 {[%clk 0:02:59]}  e6 {[%clk 0:02:59]} 3. Nc3 {[%clk 0:02:55]}  Bb4 {[%clk 0:02:58]} 4. e3 {[%clk 0:02:55]}  O-O {[%clk 0:02:57]} 5. Bd3 {[%clk 0:02:55]}  c5 {[%clk 0:02:57]} 6. Ne2 {[%clk 0:02:38]}  d5 {[%clk 0:02:55]} 7. a3 {[%clk 0:02:35]}  cxd4 {[%clk 0:02:54]} 8. axb4 {[%clk 0:02:30]}  dxc3 {[%clk 0:02:53]} 9. bxc3 {[%clk 0:02:21]}  dxc4 {[%clk 0:02:49]} 10. Bxc4 {[%clk 0:02:21]}  Qc7 {[%clk 0:02:46]} 11. Qb3 {[%clk 0:02:04]}  b5 {[%clk 0:02:29]} 12. Bxb5 {[%clk 0:01:30]}  Qb7 {[%clk 0:02:28]} 13. Bd3 {[%clk 0:01:27]}  Qxg2 {[%clk 0:02:26]} 14. Rg1 {[%clk 0:01:27]}  Qxh2 {[%clk 0:02:26]} 15. Bb2 {[%clk 0:01:26]}  Rd8 {[%clk 0:02:17]} 16. c4 {[%clk 0:01:24]}  Ne8 {[%clk 0:02:05]} 17. Be4 {[%clk 0:01:12]}  Nd7 {[%clk 0:01:25]} 18. Bxa8 {[%clk 0:01:06]}  Ne5 {[%clk 0:01:20]} 19. Rh1 {[%clk 0:00:54]}  Nd3+ {[%clk 0:01:19]} 20. Qxd3 {[%clk 0:00:52]}  Qxh1+ {[%clk 0:01:18]} 21. Bxh1 {[%clk 0:00:53]}  Rxd3 {[%clk 0:01:17]} 22. Rxa7 {[%clk 0:00:52]}  f6 {[%clk 0:00:52]} 23. Bc3 {[%clk 0:00:47]}  h5 {[%clk 0:00:49]} 24. b5 {[%clk 0:00:45]}  Nd6 {[%clk 0:00:37]} 25. Rc7 {[%clk 0:00:40]}  h4 {[%clk 0:00:30]} 26. c5 {[%clk 0:00:32]}  Nxb5 {[%clk 0:00:29]} 27. Rxc8+ {[%clk 0:00:31]}  Kf7 {[%clk 0:00:29]} 28. Bd2 {[%clk 0:00:31]}  Ra3 {[%clk 0:00:26]} 29. Bc6 {[%clk 0:00:29]}  Ra1+ {[%clk 0:00:23]} 30. Nc1 {[%clk 0:00:29]}  Nc3 {[%clk 0:00:19]} 31. Bxc3 {[%clk 0:00:24]}  Rxc1+ {[%clk 0:00:19]} 32. Kd2 {[%clk 0:00:25]}  Rg1 {[%clk 0:00:16]} 33. Rh8 {[%clk 0:00:21]}  g5 {[%clk 0:00:15]} 34. Rh6 {[%clk 0:00:21]}  e5 {[%clk 0:00:14]} 35. Be4 {[%clk 0:00:17]}  Kg7 {[%clk 0:00:13]} 36. Rh7+ {[%clk 0:00:16]}  Kg8 {[%clk 0:00:13]} 37. c6 {[%clk 0:00:16]}  Rg4 {[%clk 0:00:13]} 38. c7 {[%clk 0:00:15]}  Rxe4 {[%clk 0:00:13]} 39. c8=Q+ {[%clk 0:00:16]}  Kxh7 {[%clk 0:00:13]} 40. Qf5+ {[%clk 0:00:17]} 1-0


[Site "https://www.chess.com"]

[Event "Titled Tuesday Blitz February 07 Early 2023"]
[White "Berezin, Viktor"]
[Black "Melikhov, Evgeny V."]
[WhiteFideId "14107872"]
[BlackFideId "4122046"]
[WhiteElo "2307"]
[BlackElo "2269"]
[Result "1-0"]
[Round "11"]
[TimeControl "180+2"]
[Date "2023.02.07"]
[WhiteClock "0:00:14"]
[BlackClock "0:00:03"]

1. d4 {[%clk 0:02:56]}  Nf6 {[%clk 0:02:59]} 2. Nf3 {[%clk 0:02:56]}  d5 {[%clk 0:02:59]} 3. c4 {[%clk 0:02:56]}  e6 {[%clk 0:02:58]} 4. g3 {[%clk 0:02:55]}  dxc4 {[%clk 0:02:58]} 5. Bg2 {[%clk 0:02:55]}  Nc6 {[%clk 0:02:58]} 6. O-O {[%clk 0:02:56]}  Rb8 {[%clk 0:02:59]} 7. a4 {[%clk 0:02:55]}  a6 {[%clk 0:02:58]} 8. e3 {[%clk 0:02:53]}  Bd6 {[%clk 0:02:55]} 9. Nfd2 {[%clk 0:02:51]}  Na5 {[%clk 0:02:47]} 10. Qc2 {[%clk 0:02:44]}  O-O {[%clk 0:02:43]} 11. Nxc4 {[%clk 0:02:43]}  Nxc4 {[%clk 0:02:43]} 12. Qxc4 {[%clk 0:02:44]}  e5 {[%clk 0:02:42]} 13. Nc3 {[%clk 0:02:41]}  exd4 {[%clk 0:02:40]} 14. Qxd4 {[%clk 0:02:40]}  c6 {[%clk 0:02:32]} 15. Rd1 {[%clk 0:02:34]}  Bc7 {[%clk 0:02:31]} 16. Qh4 {[%clk 0:02:28]}  Qe7 {[%clk 0:02:23]} 17. b3 {[%clk 0:02:27]}  Be6 {[%clk 0:02:13]} 18. Ba3 {[%clk 0:02:20]}  c5 {[%clk 0:02:09]} 19. Ne4 {[%clk 0:02:09]}  b6 {[%clk 0:02:01]} 20. b4 {[%clk 0:01:54]}  Bb3 {[%clk 0:01:25]} 21. bxc5 {[%clk 0:01:39]}  Bxd1 {[%clk 0:01:22]} 22. cxb6 {[%clk 0:01:31]}  Qe5 {[%clk 0:01:20]} 23. Rxd1 {[%clk 0:01:30]}  Rfd8 {[%clk 0:00:52]} 24. Rd4 {[%clk 0:00:51]}  Bxb6 {[%clk 0:00:44]} 25. Bd6 {[%clk 0:00:46]}  Rxd6 {[%clk 0:00:39]} 26. Rxd6 {[%clk 0:00:44]}  Bc7 {[%clk 0:00:06]} 27. Rd1 {[%clk 0:00:22]}  Nxe4 {[%clk 0:00:05]} 28. Bxe4 {[%clk 0:00:19]}  g6 {[%clk 0:00:06]} 29. Bd5 {[%clk 0:00:15]}  Kg7 {[%clk 0:00:05]} 30. Qc4 {[%clk 0:00:15]}  Qf6 {[%clk 0:00:03]} 31. Qxc7 {[%clk 0:00:14]}  Rb2 {[%clk 0:00:04]} 32. Qf4 {[%clk 0:00:13]}  Qxf4 {[%clk 0:00:03]} 33. gxf4 {[%clk 0:00:14]} 1-0


[Site "https://www.chess.com"]

[Event "Titled Tuesday Blitz February 07 Early 2023"]
[White "Topalov, Aleksandar"]
[Black "Shuvalov, Evgenij"]
[WhiteFideId "925659"]
[BlackFideId "4187237"]
[WhiteElo "2233"]
[BlackElo "2038"]
[Result "1-0"]
[Round "11"]
[TimeControl "180+2"]
[Date "2023.02.07"]
[WhiteClock "0:00:24"]
[BlackClock "0:00:42"]

1. b3 {[%clk 0:02:34]}  d5 {[%clk 0:02:58]} 2. Bb2 {[%clk 0:02:34]}  Nf6 {[%clk 0:02:57]} 3. Nf3 {[%clk 0:02:33]}  Bf5 {[%clk 0:02:56]} 4. g3 {[%clk 0:02:32]}  e6 {[%clk 0:02:56]} 5. Bg2 {[%clk 0:02:32]}  h6 {[%clk 0:02:56]} 6. O-O {[%clk 0:02:32]}  Be7 {[%clk 0:02:57]} 7. d3 {[%clk 0:02:33]}  O-O {[%clk 0:02:57]} 8. Nbd2 {[%clk 0:02:33]}  Bh7 {[%clk 0:02:57]} 9. Ne5 {[%clk 0:02:32]}  Nfd7 {[%clk 0:02:56]} 10. Nxd7 {[%clk 0:02:31]}  Nxd7 {[%clk 0:02:57]} 11. e4 {[%clk 0:02:32]}  Bf6 {[%clk 0:02:56]} 12. Qc1 {[%clk 0:02:31]}  Bxb2 {[%clk 0:02:53]} 13. Qxb2 {[%clk 0:02:31]}  c6 {[%clk 0:02:52]} 14. Rfe1 {[%clk 0:02:28]}  a5 {[%clk 0:02:52]} 15. a3 {[%clk 0:02:28]}  Qb6 {[%clk 0:02:47]} 16. Qc3 {[%clk 0:02:03]}  Qc5 {[%clk 0:02:45]} 17. Qxc5 {[%clk 0:02:00]}  Nxc5 {[%clk 0:02:46]} 18. f4 {[%clk 0:01:52]}  Rfd8 {[%clk 0:02:45]} 19. Kf2 {[%clk 0:01:51]}  dxe4 {[%clk 0:02:42]} 20. Nxe4 {[%clk 0:01:51]}  Bxe4 {[%clk 0:02:41]} 21. Bxe4 {[%clk 0:01:51]}  Nxe4+ {[%clk 0:02:41]} 22. Rxe4 {[%clk 0:01:50]}  Rd5 {[%clk 0:02:41]} 23. a4 {[%clk 0:01:49]}  Rad8 {[%clk 0:02:40]} 24. Rae1 {[%clk 0:01:48]}  h5 {[%clk 0:02:41]} 25. Re5 {[%clk 0:01:47]}  g6 {[%clk 0:02:40]} 26. Rxd5 {[%clk 0:01:44]}  Rxd5 {[%clk 0:02:41]} 27. Re4 {[%clk 0:01:40]}  Kf8 {[%clk 0:02:40]} 28. Ke2 {[%clk 0:01:37]}  Ke7 {[%clk 0:02:40]} 29. h4 {[%clk 0:01:32]}  Kf6 {[%clk 0:02:40]} 30. Kf3 {[%clk 0:01:28]}  Kf5 {[%clk 0:02:39]} 31. Rc4 {[%clk 0:01:26]}  Kf6 {[%clk 0:02:37]} 32. Ke3 {[%clk 0:01:21]}  Kf5 {[%clk 0:02:37]} 33. b4 {[%clk 0:01:19]}  Kg4 {[%clk 0:02:28]} 34. Kf2 {[%clk 0:01:15]}  Kh3 {[%clk 0:02:21]} 35. bxa5 {[%clk 0:01:04]}  Rxa5 {[%clk 0:02:21]} 36. Rb4 {[%clk 0:01:04]}  b5 {[%clk 0:02:09]} 37. axb5 {[%clk 0:01:02]}  cxb5 {[%clk 0:02:09]} 38. Rb2 {[%clk 0:00:54]}  f6 {[%clk 0:02:02]} 39. Kf3 {[%clk 0:00:53]}  Ra1 {[%clk 0:01:44]} 40. c4 {[%clk 0:00:49]}  bxc4 {[%clk 0:01:37]} 41. dxc4 {[%clk 0:00:47]}  Ra3+ {[%clk 0:01:37]} 42. Kf2 {[%clk 0:00:46]}  Rxg3 {[%clk 0:01:35]} 43. Rb6 {[%clk 0:00:46]}  Rc3 {[%clk 0:01:31]} 44. Rxe6 {[%clk 0:00:45]}  Kxh4 {[%clk 0:01:30]} 45. Rxf6 {[%clk 0:00:45]}  Kg4 {[%clk 0:01:29]} 46. Rxg6+ {[%clk 0:00:44]}  Kxf4 {[%clk 0:01:30]} 47. Rc6 {[%clk 0:00:39]}  Rc2+ {[%clk 0:01:29]} 48. Kg1 {[%clk 0:00:39]}  h4 {[%clk 0:01:29]} 49. c5 {[%clk 0:00:38]}  h3 {[%clk 0:01:29]} 50. Rc8 {[%clk 0:00:37]}  Ke5 {[%clk 0:01:28]} 51. c6 {[%clk 0:00:37]}  Kd6 {[%clk 0:01:28]} 52. Rd8+ {[%clk 0:00:30]}  Kc7 {[%clk 0:01:28]} 53. Rh8 {[%clk 0:00:28]}  Rc3 {[%clk 0:01:27]} 54. Kh2 {[%clk 0:00:26]}  Kxc6 {[%clk 0:01:25]} 55. Rc8+ {[%clk 0:00:26]}  Kd6 {[%clk 0:00:42]} 56. Rxc3 {[%clk 0:00:24]} 1-0


[Site "https://www.chess.com"]

[Event "Titled Tuesday Blitz February 07 Early 2023"]
[White "Gutkin, Ilya"]
[Black "Jain Kashish Manoj"]
[WhiteFideId "16203470"]
[BlackFideId "35081098"]
[WhiteElo "2273"]
[BlackElo "2375"]
[Result "1-0"]
[Round "11"]
[TimeControl "180+2"]
[Date "2023.02.07"]
[WhiteClock "0:00:12"]
[BlackClock "0:00:05"]

1. Nf3 {[%clk 0:03:00]}  b6 {[%clk 0:02:57]} 2. g3 {[%clk 0:02:58]}  Bb7 {[%clk 0:02:58]} 3. Bg2 {[%clk 0:02:58]}  e6 {[%clk 0:02:54]} 4. c4 {[%clk 0:02:57]}  c5 {[%clk 0:02:54]} 5. O-O {[%clk 0:02:56]}  Nc6 {[%clk 0:02:54]} 6. d4 {[%clk 0:02:55]}  cxd4 {[%clk 0:02:44]} 7. Nxd4 {[%clk 0:02:54]}  Nf6 {[%clk 0:02:44]} 8. Bf4 {[%clk 0:02:39]}  a6 {[%clk 0:02:13]} 9. Nc3 {[%clk 0:02:30]}  Be7 {[%clk 0:02:11]} 10. Nxc6 {[%clk 0:02:00]}  Bxc6 {[%clk 0:02:11]} 11. Bxc6 {[%clk 0:01:59]}  dxc6 {[%clk 0:02:12]} 12. Qxd8+ {[%clk 0:01:59]}  Rxd8 {[%clk 0:02:12]} 13. Rfd1 {[%clk 0:01:49]}  O-O {[%clk 0:02:09]} 14. Bc7 {[%clk 0:01:47]}  Rxd1+ {[%clk 0:02:10]} 15. Rxd1 {[%clk 0:01:47]}  b5 {[%clk 0:02:10]} 16. b3 {[%clk 0:01:37]}  Rc8 {[%clk 0:02:07]} 17. Be5 {[%clk 0:01:35]}  Kf8 {[%clk 0:02:06]} 18. f3 {[%clk 0:01:09]}  Ke8 {[%clk 0:02:04]} 19. g4 {[%clk 0:01:09]}  h6 {[%clk 0:02:01]} 20. h4 {[%clk 0:01:05]}  g6 {[%clk 0:01:45]} 21. Bxf6 {[%clk 0:01:00]}  Bxf6 {[%clk 0:01:45]} 22. Ne4 {[%clk 0:01:00]}  Be7 {[%clk 0:01:45]} 23. c5 {[%clk 0:00:58]}  a5 {[%clk 0:01:40]} 24. Nd6+ {[%clk 0:00:51]}  Bxd6 {[%clk 0:01:40]} 25. Rxd6 {[%clk 0:00:52]}  Ke7 {[%clk 0:01:40]} 26. Kf2 {[%clk 0:00:50]}  g5 {[%clk 0:01:30]} 27. h5 {[%clk 0:00:49]}  Rc7 {[%clk 0:01:00]} 28. Ke3 {[%clk 0:00:47]}  b4 {[%clk 0:00:54]} 29. Ke4 {[%clk 0:00:43]}  f6 {[%clk 0:00:49]} 30. e3 {[%clk 0:00:34]}  Rc8 {[%clk 0:00:48]} 31. f4 {[%clk 0:00:33]}  gxf4 {[%clk 0:00:43]} 32. exf4 {[%clk 0:00:29]}  Rc7 {[%clk 0:00:38]} 33. g5 {[%clk 0:00:17]}  hxg5 {[%clk 0:00:31]} 34. fxg5 {[%clk 0:00:18]}  fxg5 {[%clk 0:00:32]} 35. Ke5 {[%clk 0:00:19]}  Kf7 {[%clk 0:00:28]} 36. Rxe6 {[%clk 0:00:18]}  Rc8 {[%clk 0:00:15]} 37. Rf6+ {[%clk 0:00:17]}  Ke7 {[%clk 0:00:14]} 38. Rg6 {[%clk 0:00:18]}  Kf7 {[%clk 0:00:05]} 39. Rxg5 {[%clk 0:00:16]}  Rd8 {[%clk 0:00:05]} 40. Ke4 {[%clk 0:00:13]}  Kf6 {[%clk 0:00:04]} 41. Rg6+ {[%clk 0:00:13]}  Ke7 {[%clk 0:00:04]} 42. Rxc6 {[%clk 0:00:14]}  Rh8 {[%clk 0:00:05]} 43. h6 {[%clk 0:00:13]}  Ra8 {[%clk 0:00:05]} 44. Rg6 {[%clk 0:00:13]}  Kf7 {[%clk 0:00:05]} 45. Kf5 {[%clk 0:00:12]}  a4 {[%clk 0:00:04]} 46. Rg7+ {[%clk 0:00:12]}  Kf8 {[%clk 0:00:04]} 47. Rc7 {[%clk 0:00:12]}  axb3 {[%clk 0:00:04]} 48. axb3 {[%clk 0:00:12]}  Ra3 {[%clk 0:00:05]} 49. h7 {[%clk 0:00:12]} 1-0


[Site "https://www.chess.com"]

[Event "Titled Tuesday Blitz February 07 Early 2023"]
[White "Tarasova, Viktoriya"]
[Black "Ozates, Tuna"]
[WhiteFideId "4175840"]
[BlackFideId "6354521"]
[WhiteElo "2226"]
[BlackElo "2251"]
[Result "0-1"]
[Round "11"]
[TimeControl "180+2"]
[Date "2023.02.07"]
[WhiteClock "0:00:14"]
[BlackClock "0:01:25"]

1. d4 {[%clk 0:03:00]}  g6 {[%clk 0:02:56]} 2. c4 {[%clk 0:03:00]}  Bg7 {[%clk 0:02:56]} 3. e4 {[%clk 0:03:01]}  d6 {[%clk 0:02:56]} 4. Nc3 {[%clk 0:03:01]}  Nc6 {[%clk 0:02:55]} 5. Be3 {[%clk 0:02:59]}  e5 {[%clk 0:02:54]} 6. Nge2 {[%clk 0:03:00]}  Nge7 {[%clk 0:02:49]} 7. d5 {[%clk 0:02:57]}  Nb8 {[%clk 0:02:49]} 8. Qd2 {[%clk 0:02:50]}  h6 {[%clk 0:02:47]} 9. O-O-O {[%clk 0:02:49]}  a5 {[%clk 0:02:45]} 10. f3 {[%clk 0:02:50]}  Na6 {[%clk 0:02:45]} 11. g4 {[%clk 0:02:49]}  b6 {[%clk 0:02:43]} 12. Ng3 {[%clk 0:02:49]}  Bd7 {[%clk 0:02:40]} 13. h4 {[%clk 0:02:50]}  Nc5 {[%clk 0:02:36]} 14. Kb1 {[%clk 0:02:49]}  Qc8 {[%clk 0:02:36]} 15. h5 {[%clk 0:02:46]}  g5 {[%clk 0:02:35]} 16. Be2 {[%clk 0:02:41]}  a4 {[%clk 0:02:31]} 17. Rc1 {[%clk 0:02:29]}  Bf8 {[%clk 0:02:20]} 18. Kc2 {[%clk 0:02:29]}  c6 {[%clk 0:02:20]} 19. Kd1 {[%clk 0:02:28]}  Qb7 {[%clk 0:02:14]} 20. Ke1 {[%clk 0:02:28]}  cxd5 {[%clk 0:02:05]} 21. exd5 {[%clk 0:02:23]}  f5 {[%clk 0:01:56]} 22. gxf5 {[%clk 0:02:19]}  Nxf5 {[%clk 0:01:57]} 23. Nxf5 {[%clk 0:02:06]}  Bxf5 {[%clk 0:01:54]} 24. Bxc5 {[%clk 0:02:06]}  bxc5 {[%clk 0:01:55]} 25. Nb5 {[%clk 0:02:00]}  Be7 {[%clk 0:01:54]} 26. Bd3 {[%clk 0:01:59]}  O-O {[%clk 0:01:54]} 27. Qc2 {[%clk 0:01:50]}  Qd7 {[%clk 0:01:52]} 28. Bxf5 {[%clk 0:01:37]}  Rxf5 {[%clk 0:01:51]} 29. Qe4 {[%clk 0:01:36]}  Raf8 {[%clk 0:01:51]} 30. Rc3 {[%clk 0:01:36]}  Bd8 {[%clk 0:01:48]} 31. Ke2 {[%clk 0:01:36]}  Ba5 {[%clk 0:01:46]} 32. Rd3 {[%clk 0:01:35]}  R8f6 {[%clk 0:01:42]} 33. Ra3 {[%clk 0:00:58]}  Rf4 {[%clk 0:01:37]} 34. Qc2 {[%clk 0:00:53]}  e4 {[%clk 0:01:36]} 35. Qxa4 {[%clk 0:00:28]}  exf3+ {[%clk 0:01:31]} 36. Kf2 {[%clk 0:00:24]}  Qg4 {[%clk 0:01:26]} 37. Rg1 {[%clk 0:00:17]}  Qh4+ {[%clk 0:01:26]} 38. Kf1 {[%clk 0:00:14]}  Qe1# {[%clk 0:01:25]} 0-1


[Site "https://www.chess.com"]